bitfinex/quotes_BTCUSD_20250826
["timestamp","ask_amount","ask_price","bid_price","bid_amount"]
[1756171752797,0.03124412,109940.0,109930.0,0.33936069]
[1756171752967,0.03124412,109940.0,109930.0,0.59708069]
[1756171752968,0.01701028,109940.0,109930.0,0.59708069]
[1756171753176,0.01701028,109940.0,109930.0,0.68852598]
[1756171753374,0.01701028,109940.0,109930.0,1.05474813]
[1756171753795,0.01701028,109940.0,109930.0,0.89202813]
[1756171753942,0.01701028,109940.0,109930.0,1.05174813]
[1756171754144,0.01701028,109940.0,109930.0,1.05274813]
[1756171754348,0.01701028,109940.0,109930.0,0.89302813]
[1756171754547,0.01701028,109940.0,109930.0,1.05270813]
[1756171755750,0.01701028,109940.0,109930.0,1.05070813]
[1756171755955,0.00113433,109950.0,109940.0,0.3319174]
[1756171756089,0.01814544,109950.0,109940.0,0.69808955]
[1756171756905,0.20642603,109950.0,109940.0,0.95776955]
[1756171757110,0.2052917,109950.0,109940.0,0.95776955]
[1756171758320,0.02339084,109950.0,109940.0,0.79808955]
[1756171758502,0.02452517,109950.0,109940.0,0.95776955]
[1756171758901,0.04550244,109950.0,109940.0,0.95776955]
[1756171759130,0.01814544,109950.0,109940.0,1.04921484]
[1756171759333,0.03237869,109950.0,109940.0,1.04921484]
[1756171760454,0.03237869,109950.0,109940.0,1.04917484]
[1756171760819,0.03237869,109950.0,109940.0,0.88953484]
[1756171761029,0.03237869,109950.0,109940.0,1.04917484]
[1756171762432,0.03237869,109950.0,109940.0,0.95772955]
[1756171763546,0.01814544,109950.0,109940.0,0.95772955]
[1756171763739,0.01701111,109950.0,109940.0,0.95772955]
[1756171763956,0.01701111,109950.0,109940.0,0.95768955]
[1756171764978,0.01701111,109950.0,109940.0,0.79808955]
[1756171765172,0.01701111,109950.0,109940.0,1.04913484]
[1756171765371,0.00113433,109960.0,109950.0,0.33190086]
[1756171765583,0.00113433,109960.0,109950.0,0.92787301]
[1756171766260,0.0181619,109960.0,109950.0,0.92787301]
[1756171767123,0.0181619,109960.0,109950.0,0.92783301]
[1756171767325,0.0181619,109960.0,109950.0,0.40705086]
[1756171767461,0.0181619,109960.0,109950.0,0.92783301]
[1756171767890,0.0181619,109960.0,109950.0,0.92883301]
[1756171768095,0.0181619,109960.0,109950.0,1.02883301]
[1756171768307,0.03339366,109960.0,109950.0,0.86927301]
[1756171768525,0.03339377,109960.0,109950.0,1.02883301]
[1756171768698,0.21427809,109960.0,109950.0,0.84693215]
[1756171768903,0.03125944,109960.0,109950.0,0.66761086]
[1756171769103,0.03239377,109960.0,109950.0,0.66861086]
[1756171769303,0.03239377,109960.0,109950.0,0.50905086]
[1756171769465,0.03239377,109960.0,109950.0,0.66861086]
[1756171769666,0.03239377,109960.0,109950.0,1.02983301]
[1756171769920,0.03239377,109960.0,109950.0,0.66861086]
[1756171770120,0.03239377,109960.0,109950.0,1.02983301]
[1756171770521,0.03239377,109960.0,109950.0,0.66861086]
[1756171770728,0.21427809,109960.0,109950.0,0.68837215]
[1756171770885,0.03125944,109960.0,109950.0,0.87027301]
[1756171771093,0.03239377,109960.0,109950.0,1.02983301]
[1756171771290,0.03125944,109960.0,109950.0,1.02983301]
[1756171772135,0.03125944,109960.0,109950.0,0.87027301]
[1756171772331,0.01423176,109960.0,109950.0,1.02979301]
[1756171772532,0.01423176,109960.0,109950.0,0.66857086]
[1756171772794,0.0553227,109970.0,109960.0,0.18188432]
[1756171773072,0.08086305,109970.0,109960.0,0.18707432]
[1756171773416,0.07234962,109970.0,109960.0,0.18707432]
[1756171774655,0.0553227,109970.0,109960.0,0.18707432]
[1756171774852,0.07235023,109970.0,109960.0,0.18707432]
[1756171775080,0.07235023,109970.0,109960.0,0.54829647]
[1756171775290,0.07235023,109970.0,109960.0,0.80777647]
[1756171775726,0.07235055,109970.0,109960.0,0.80777647]
[1756171775867,0.07335055,109970.0,109960.0,0.80777647]
[1756171776062,0.08758178,109970.0,109960.0,0.80777647]
[1756171776470,0.08758178,109970.0,109960.0,0.95777647]
[1756171776686,0.07055393,109970.0,109960.0,0.95777647]
[1756171776887,0.07055393,109970.0,109960.0,0.80777647]
[1756171777089,0.07055393,109970.0,109960.0,0.95777647]
[1756171777289,0.08758677,109970.0,109960.0,0.59655432]
[1756171777535,0.07055393,109970.0,109960.0,0.95777647]
[1756171777737,0.07426173,109980.0,109960.0,0.95777647]
[1756171777897,0.1061974,109980.0,109970.0,0.15948]
[1756171778099,0.1335514,109980.0,109970.0,0.15948]
[1756171778685,0.18186778,109970.0,109960.0,0.43511432]
[1756171778886,0.04086798,109970.0,109960.0,0.59655432]
[1756171779088,0.04086798,109970.0,109960.0,0.95825321]
[1756171779339,0.04086798,109970.0,109960.0,1.0496985]
[1756171780102,0.04086798,109970.0,109960.0,0.8902185]
[1756171780302,0.04086798,109970.0,109960.0,1.0496585]
[1756171780514,0.04186798,109970.0,109960.0,1.0496585]
[1756171781047,0.04186798,109970.0,109960.0,0.68843635]
[1756171781242,0.04188775,109970.0,109960.0,1.0496585]
[1756171781437,0.0561187,109970.0,109960.0,1.0496585]
[1756171781767,0.0561187,109970.0,109960.0,0.95821321]
[1756171782619,0.0561187,109970.0,109960.0,0.59699106]
[1756171782836,0.0561187,109970.0,109960.0,0.95821321]
[1756171784313,0.05611975,109970.0,109960.0,0.95821321]
[1756171784686,0.0418888,109970.0,109960.0,0.95821321]
[1756171784819,0.04188876,109970.0,109960.0,0.95821321]
[1756171786038,0.02483562,109970.0,109960.0,1.0496585]
[1756171786446,0.02483562,109970.0,109960.0,1.41088065]
[1756171786683,0.02483562,109970.0,109960.0,1.0496585]
[1756171787227,0.02383562,109970.0,109960.0,0.95821321]
[1756171787427,0.36735,109990.0,109980.0,0.18185124]
[1756171787673,0.39931974,109990.0,109980.0,0.34317124]
[1756171787873,0.4230062,109990.0,109980.0,0.34640124]
[1756171788283,0.42300619,109990.0,109980.0,0.34640124]
[1756171789643,0.42400619,109990.0,109980.0,0.34640124]
[1756171789951,0.43823511,109990.0,109980.0,0.34640124]
[1756171790974,0.43923511,109990.0,109980.0,0.70762339]
[1756171791944,0.09923511,109990.0,109980.0,0.34640124]
[1756171792188,0.07861224,109990.0,109980.0,0.69854339]
[1756171792438,0.07861224,109990.0,109980.0,0.78998868]
[1756171792600,0.05126224,109990.0,109980.0,0.42876653]
[1756171793002,0.07008698,109990.0,109980.0,1.03998868]
[1756171793406,0.02568646,109990.0,109980.0,1.03998868]
[1756171793989,0.02568646,109990.0,109980.0,0.88062868]
[1756171794194,0.02468646,109990.0,109980.0,1.10990868]
[1756171794679,0.02468646,109990.0,109980.0,0.58936653]
[1756171794829,0.02468646,109990.0,109980.0,0.74868653]
[1756171795031,0.02468646,109990.0,109980.0,1.10990868]
[1756171795231,0.02368646,109990.0,109980.0,1.10990868]
[1756171795437,0.527349,110000.0,109990.0,0.18183471]
[1756171795607,0.55929607,110000.0,109990.0,0.18183471]
[1756171795808,0.05929607,110000.0,109990.0,0.18501471]
[1756171796008,0.05929572,110000.0,109990.0,0.18501471]
[1756171796450,0.08262429,110000.0,109990.0,0.18501471]
[1756171796621,0.08262429,110000.0,109990.0,0.34429471]
[1756171796843,0.07410384,110000.0,109990.0,0.34429471]
[1756171797026,0.08262141,110000.0,109990.0,0.34429471]
[1756171797375,0.09684902,110000.0,109990.0,0.34639471]
[1756171800222,0.09684902,110000.0,109990.0,0.80761686]
[1756171800542,0.05459427,110000.0,109990.0,0.95761686]
[1756171800747,0.03755618,110000.0,109990.0,0.95761686]
[1756171801604,0.03755618,110000.0,109990.0,0.79833686]
[1756171801825,0.03755618,110000.0,109990.0,1.04902215]
[1756171802428,0.03755618,110000.0,109990.0,1.04898215]
[1756171803276,0.03755618,110000.0,109990.0,1.05098215]
[1756171804307,0.02332857,110000.0,109990.0,1.05098215]
[1756171804537,0.527345,110020.0,110010.0,0.18180165]
[1756171804738,0.55285536,110020.0,110010.0,0.34100165]
[1756171804942,0.55285536,110020.0,110010.0,0.34418165]
[1756171805079,0.55285536,110020.0,110010.0,0.8075038]
[1756171805504,0.57567972,110020.0,110010.0,0.8075038]
[1756171805760,0.04833472,110020.0,110010.0,0.8075038]
[1756171805962,0.04933472,110020.0,110010.0,0.8075038]
[1756171807061,0.04933472,110020.0,110010.0,0.8774638]
[1756171807589,0.06455965,110020.0,110010.0,0.8774638]
[1756171808187,0.06455965,110020.0,110010.0,0.94445791]
[1756171808405,0.06455965,110020.0,110010.0,0.8774638]
[1756171808611,0.04755274,110020.0,110010.0,0.7182638]
[1756171808820,0.04755274,110020.0,110010.0,0.8774238]
[1756171808995,0.04655274,110020.0,110010.0,0.8774238]
[1756171809221,0.04655274,110020.0,110010.0,0.51620165]
[1756171809495,0.22933786,110020.0,110000.0,0.33180387]
[1756171809688,0.24633262,110020.0,110010.0,0.44092165]
[1756171809888,0.24433262,110020.0,110010.0,0.44092165]
[1756171810089,0.27167562,110020.0,110010.0,0.25912]
[1756171810309,0.27267562,110020.0,110010.0,0.25912]
[1756171810829,0.27167562,110020.0,110010.0,0.25912]
[1756171811241,0.27267562,110020.0,110010.0,0.25912]
[1756171811447,0.27267562,110020.0,110010.0,0.44410165]
[1756171811666,0.09088974,110020.0,110010.0,0.44620165]
[1756171811903,0.09088974,110020.0,110010.0,0.8074238]
[1756171812123,0.06354674,110020.0,110010.0,0.8074238]
[1756171812440,0.06354674,110020.0,110010.0,0.9574238]
[1756171812655,0.03804929,110020.0,110010.0,0.9574238]
[1756171812863,0.02382436,110020.0,110010.0,1.12216608]
[1756171813074,0.002,110020.0,110010.0,0.96304608]
[1756171813331,0.001,110020.0,110010.0,1.12212608]
[1756171813529,0.5,110040.0,110030.0,0.3317686]
[1756171813737,3.68345737,110040.0,110030.0,0.4919486]
[1756171813964,0.02548737,110040.0,110030.0,0.4951286]
[1756171814168,0.52548737,110040.0,110030.0,0.49492868]
[1756171814353,3.68345737,110040.0,110030.0,0.49492868]
[1756171814529,0.02548737,110040.0,110030.0,0.49492868]
[1756171814733,0.52548737,110040.0,110030.0,0.33584868]
[1756171814939,3.86520946,110040.0,110030.0,0.4408486]
[1756171815120,3.86520946,110040.0,110030.0,0.2817686]
[1756171815306,0.23110646,110040.0,110030.0,0.4408486]
[1756171815895,0.04935437,110040.0,110030.0,0.97924791]
[1756171816510,0.04935437,110040.0,110030.0,0.61802576]
[1756171816709,0.06357653,110040.0,110030.0,0.5961286]
[1756171817666,0.56357653,110040.0,110030.0,0.95735075]
[1756171817868,3.22154653,110040.0,110030.0,0.5939886]
[1756171818066,0.06357653,110040.0,110030.0,0.5960886]
[1756171819412,0.06357653,110040.0,110030.0,0.4370486]
[1756171819747,0.06357653,110040.0,110030.0,0.5960886]
[1756171820433,0.06357653,110040.0,110030.0,1.04875604]
[1756171820659,0.04935437,110040.0,110030.0,0.68753389]
[1756171821177,0.04935437,110040.0,110030.0,0.5960886]
[1756171821178,0.04934946,110040.0,110030.0,0.5960886]
[1756171821397,0.04934946,110040.0,110030.0,0.95731075]
[1756171821603,0.04935263,110040.0,110030.0,0.5960886]
[1756171821814,0.03236221,110040.0,110030.0,0.5960886]
[1756171822019,0.04935263,110040.0,110030.0,0.95731075]
[1756171822166,0.04935263,110040.0,110030.0,0.62480787]
[1756171822350,0.04935263,110040.0,110030.0,0.95731075]
[1756171822777,0.04935263,110040.0,110030.0,0.5960886]
[1756171823113,0.04935263,110040.0,110030.0,0.95727075]
[1756171823745,0.04935354,110040.0,110030.0,0.95727075]
[1756171823976,0.04935354,110040.0,110030.0,0.79827075]
[1756171824188,0.04935354,110040.0,110030.0,0.95727075]
[1756171825264,0.03236312,110040.0,110030.0,0.95727075]
[1756171826435,0.00849612,110040.0,110030.0,0.95727075]
[1756171826978,0.02877887,110040.0,110030.0,0.4370486]
[1756171827181,0.02877887,110040.0,110030.0,1.04871604]
[1756171827720,0.00849612,110040.0,110030.0,1.04871604]
[1756171827970,0.00849612,110040.0,110030.0,1.04971604]
[1756171828207,0.00849612,110040.0,110030.0,0.53149389]
[1756171828549,0.00849612,110040.0,110030.0,0.96023075]
[1756171828756,0.02271655,110040.0,110030.0,0.96023075]
[1756171830019,0.02271655,110040.0,110030.0,0.4379486]
[1756171830221,0.03971753,110040.0,110030.0,0.5969086]
[1756171830425,0.05005255,110040.0,110030.0,0.5988686]
[1756171830654,0.06706055,110040.0,110030.0,0.69031389]
[1756171830831,0.05991289,110040.0,110030.0,0.96009075]
[1756171831036,0.05991267,110040.0,110030.0,0.96009075]
[1756171831224,0.04290992,110040.0,110030.0,0.96009075]
[1756171832310,0.02272158,110040.0,110030.0,0.96009075]
[1756171832596,0.02272158,110040.0,110030.0,1.05153604]
[1756171832814,0.00850115,110040.0,110030.0,1.05153604]
[1756171833025,0.02945117,110040.0,110030.0,0.69031389]
[1756171833260,0.00850115,110040.0,110030.0,1.05153604]
[1756171833686,0.20905153,110060.0,110050.0,0.18173557]
[1756171833887,0.2409331,110060.0,110050.0,0.34069557]
[1756171834016,0.2409331,110060.0,110050.0,0.18173557]
[1756171834371,0.33891675,110060.0,110050.0,0.1]
[1756171834594,0.33891675,110060.0,110050.0,0.15892]
[1756171834805,0.26052181,110060.0,110050.0,0.15892]
[1756171835016,0.26052181,110060.0,110050.0,0.25892]
[1756171835344,0.28222142,110060.0,110050.0,0.44065557]
[1756171835524,0.28322142,110060.0,110050.0,0.44065557]
[1756171835769,0.28322142,110060.0,110050.0,0.25892]
[1756171835976,0.28322142,110060.0,110040.0,0.43466796]
[1756171836235,0.28322142,110060.0,110030.0,0.29133377]
[1756171836236,3.33970557,110050.0,110030.0,0.29133377]
[1756171836463,0.03188157,110050.0,110040.0,0.59556209]
[1756171837085,0.24095114,110050.0,110040.0,0.44067209]
[1756171837291,0.24095114,110050.0,110040.0,0.59067209]
[1756171837671,0.24095114,110050.0,110040.0,0.59360209]
[1756171837871,0.24095114,110050.0,110040.0,0.18175209]
[1756171838106,0.24095114,110050.0,110040.0,0.44067209]
[1756171838238,0.24095114,110050.0,110040.0,0.49067209]
[1756171838787,0.24095114,110050.0,110040.0,0.43175209]
[1756171839047,0.24095114,110050.0,110040.0,0.59067209]
[1756171839256,0.24095114,110050.0,110040.0,0.18175209]
[1756171839458,0.07882161,110050.0,110040.0,0.59556209]
[1756171839925,0.26058781,110050.0,110040.0,0.43664209]
[1756171840134,0.07885224,110050.0,110040.0,0.59556209]
[1756171840332,0.07886345,110050.0,110040.0,0.96908352]
[1756171840532,0.05925741,110050.0,110040.0,0.95678424]
[1756171841257,0.05925741,110050.0,110040.0,0.59556209]
[1756171841471,0.03192341,110050.0,110040.0,0.95678424]
[1756171841678,0.02553873,110050.0,110040.0,0.95678424]
[1756171842329,0.02553873,110050.0,110040.0,1.04822953]
[1756171842799,0.02553873,110050.0,110040.0,0.79786424]
[1756171843000,0.02553873,110050.0,110040.0,0.95674424]
[1756171843204,0.02553873,110050.0,110040.0,0.59552209]
[1756171843416,0.00851291,110050.0,110040.0,0.95674424]
[1756171843842,0.00851291,110050.0,110040.0,0.6372596]
[1756171844057,0.00851291,110050.0,110040.0,1.08134109]
[1756171844903,0.00851291,110050.0,110040.0,0.72211894]
[1756171845103,0.00851291,110050.0,110040.0,1.08334109]
[1756171845934,0.02273225,110050.0,110040.0,0.6422596]
[1756171846138,0.02273623,110050.0,110040.0,1.27218175]
[1756171846703,0.02273623,110050.0,110040.0,0.7520796]
[1756171846921,0.02273623,110050.0,110040.0,0.9109596]
[1756171847323,0.02273623,110050.0,110040.0,1.11330175]
[1756171847554,0.02273623,110050.0,110040.0,1.27218175]
[1756171847758,0.02273623,110050.0,110040.0,1.36362704]
[1756171848264,0.02273623,110050.0,110040.0,1.00240489]
[1756171848469,0.02273623,110050.0,110040.0,1.36362704]
[1756171848881,0.02273623,110050.0,110040.0,1.00240489]
[1756171849077,0.02273623,110050.0,110040.0,0.7520796]
[1756171849277,0.0227367,110050.0,110040.0,0.9109596]
[1756171849746,0.0227367,110050.0,110040.0,1.11330175]
[1756171849931,0.0227367,110050.0,110040.0,0.9109596]
[1756171850078,0.02273657,110050.0,110040.0,1.27218175]
[1756171850480,0.02273657,110050.0,110040.0,1.36362704]
[1756171851925,0.02273657,110050.0,110040.0,1.20474704]
[1756171852130,0.02273657,110050.0,110040.0,1.09520704]
[1756171852455,0.02273657,110050.0,110040.0,0.73398489]
[1756171852661,0.02273657,110050.0,110040.0,1.09520704]
[1756171852864,0.02273657,110050.0,110040.0,1.00372175]
[1756171855737,0.02273657,110050.0,110040.0,1.00360175]
[1756171856281,0.02273657,110050.0,110040.0,0.4833796]
[1756171856479,0.02273657,110050.0,110040.0,1.00360175]
[1756171856682,0.02273657,110050.0,110040.0,1.09504704]
[1756171856891,0.02273657,110050.0,110040.0,0.73382489]
[1756171857098,0.00851723,110050.0,110040.0,1.09504704]
[1756171857513,0.00851723,110050.0,110040.0,0.73382489]
[1756171857716,0.00851723,110050.0,110040.0,0.93604704]
[1756171857924,0.00851723,110050.0,110040.0,1.09500704]
[1756171858338,0.02069961,110060.0,110050.0,0.18173557]
[1756171858543,0.02069961,110060.0,110050.0,0.49265557]
[1756171858745,0.027329,110070.0,110050.0,0.49265557]
[1756171858746,0.20903155,110070.0,110060.0,0.1]
[1756171859002,0.26119444,110070.0,110060.0,0.28171906]
[1756171859231,0.07949192,110070.0,110060.0,0.28171906]
[1756171859443,0.0539354,110070.0,110060.0,0.28171906]
[1756171859645,0.26119385,110070.0,110060.0,0.28171906]
[1756171859850,0.26119385,110070.0,110050.0,0.50465557]
[1756171860068,0.622416,110070.0,110060.0,0.15896]
[1756171860289,0.26119385,110070.0,110060.0,0.15896]
[1756171860493,0.27541265,110070.0,110060.0,0.15896]
[1756171860884,0.27541265,110070.0,110060.0,0.34067906]
[1756171861094,0.27541265,110070.0,110060.0,0.18171906]
[1756171861311,0.27541265,110070.0,110060.0,0.34075906]
[1756171861521,0.26119385,110070.0,110060.0,0.34075906]
[1756171861731,0.0794913,110070.0,110060.0,0.33167906]
[1756171862378,0.0794913,110070.0,110060.0,0.43665906]
[1756171863989,0.26119385,110070.0,110060.0,0.43167906]
[1756171864203,0.26119385,110070.0,110060.0,0.17263906]
[1756171864420,0.26119385,110070.0,110060.0,0.33199906]
[1756171864650,0.26119385,110070.0,110060.0,0.43199906]
[1756171864865,0.0794913,110070.0,110060.0,0.48327892]
[1756171865085,0.0794913,110070.0,110060.0,0.43501906]
[1756171865291,0.0794913,110070.0,110060.0,0.43697906]
[1756171865928,0.26119385,110070.0,110060.0,0.43501906]
[1756171866131,0.26119385,110070.0,110060.0,0.33199906]
[1756171866339,0.26119385,110070.0,110060.0,0.43199906]
[1756171866558,0.26119385,110070.0,110060.0,0.33199906]
[1756171866774,0.26119385,110070.0,110060.0,0.43501906]
[1756171866993,0.07310217,110070.0,110060.0,0.43501906]
[1756171867208,0.07950174,110070.0,110060.0,0.43199906]
[1756171867418,0.26120429,110070.0,110060.0,0.33199906]
[1756171867648,0.26120429,110070.0,110060.0,0.43199906]
[1756171868146,0.26120429,110070.0,110060.0,0.33199906]
[1756171868625,0.26120429,110070.0,110060.0,0.44167906]
[1756171868845,0.62242644,110070.0,110050.0,0.50467557]
[1756171869058,0.26120429,110070.0,110060.0,0.15992]
[1756171869479,0.26120429,110070.0,110050.0,0.50467557]
[1756171869681,0.26120429,110070.0,110060.0,0.15992]
[1756171869896,0.26120429,110070.0,110050.0,0.50467557]
[1756171870102,0.26120429,110070.0,110060.0,0.16]
[1756171870313,0.26121293,110070.0,110060.0,0.16]
[1756171870720,0.26121293,110070.0,110060.0,0.15]
[1756171870933,0.26121293,110070.0,110060.0,0.30996]
[1756171871563,0.27543151,110070.0,110060.0,0.30996]
[1756171871777,0.52171906,110060.0,110040.0,0.25]
[1756171871987,0.52171906,110060.0,110040.0,0.15996]
[1756171871988,3.33970557,110050.0,110040.0,0.15996]
[1756171872203,0.39318626,110050.0,110040.0,0.49367209]
[1756171872411,0.03196948,110050.0,110040.0,0.49669209]
[1756171872623,0.05930448,110050.0,110040.0,0.49669209]
[1756171873275,0.05291339,110050.0,110040.0,0.59669209]
[1756171873922,0.05391339,110050.0,110040.0,0.95791424]
[1756171874386,0.03685646,110050.0,110040.0,0.59669209]
[1756171875458,0.03685646,110050.0,110040.0,0.95791424]
[1756171875459,0.028335,110050.0,110040.0,0.95791424]
[1756171875671,0.028335,110050.0,110040.0,0.59669209]
[1756171875881,0.028335,110050.0,110040.0,0.95791424]
[1756171876080,0.36021727,110070.0,110060.0,0.18171906]
[1756171876229,0.73848352,110070.0,110060.0,0.34167906]
[1756171876437,0.77303376,110070.0,110060.0,0.34469906]
[1756171876627,0.77303376,110070.0,110060.0,0.59665906]
[1756171876628,0.05217583,110070.0,110060.0,0.59665906]
[1756171876826,0.05217578,110070.0,110060.0,0.59665906]
[1756171877231,0.07950778,110070.0,110060.0,0.59665906]
[1756171877672,0.08250778,110070.0,110060.0,0.59665906]
[1756171878140,0.08450778,110070.0,110060.0,0.59665906]
[1756171878364,0.09233439,110070.0,110060.0,0.59665906]
[1756171878778,0.61231833,110070.0,110060.0,0.40988]
[1756171878984,0.61231833,110070.0,110060.0,0.30988]
[1756171879187,0.61231833,110070.0,110060.0,0.25]
[1756171879400,0.18171906,110060.0,110050.0,0.49161557]
[1756171879616,0.56850865,110060.0,110050.0,0.49161557]
[1756171879815,0.56850865,110060.0,110050.0,0.33475557]
[1756171880047,0.36974443,110060.0,110050.0,0.49655557]
[1756171880716,0.36974443,110060.0,110050.0,0.59655557]
[1756171882400,0.00852228,110060.0,110050.0,0.59655557]
[1756171883072,0.36122215,110060.0,110050.0,0.67438628]
[1756171883224,0.57025695,110070.0,110060.0,0.18171906]
[1756171883441,3.77236943,110070.0,110060.0,0.18171906]
[1756171883840,0.18171906,110060.0,110050.0,0.15]
[1756171884051,3.70091121,110060.0,110050.0,0.59133557]
[1756171884254,0.54294121,110060.0,110050.0,0.49133557]
[1756171884454,0.18171906,110060.0,110050.0,0.49133557]
[1756171884660,0.54294121,110060.0,110050.0,0.49133557]
[1756171885129,0.36122215,110060.0,110050.0,0.59631557]
[1756171885269,0.54294121,110060.0,110050.0,0.59631557]
[1756171885486,0.23074116,110070.0,110050.0,0.67503104]
[1756171885699,4.01919215,110060.0,110050.0,0.59631557]
[1756171885893,0.59196331,110070.0,110050.0,0.59631557]
[1756171886098,3.15797,110060.0,110050.0,0.59631557]
[1756171886383,3.15797,110060.0,110050.0,0.59731557]
[1756171886604,3.15797,110060.0,110050.0,0.59759557]
[1756171886807,3.17501471,110060.0,110050.0,0.59759557]
[1756171887010,3.17501471,110060.0,110050.0,0.1639]
[1756171887011,0.55998592,110060.0,110050.0,0.1639]
[1756171887212,0.55998592,110060.0,110050.0,0.31088]
[1756171887418,0.55998592,110060.0,110050.0,0.001]
[1756171887622,0.5663777,110060.0,110050.0,0.16084]
[1756171887851,0.7262177,110060.0,110050.0,0.001]
[1756171888291,0.7535527,110060.0,110050.0,0.001]
[1756171888511,0.18173557,110050.0,110040.0,0.25984]
[1756171888747,0.56000274,110050.0,110040.0,0.40984]
[1756171889219,0.56000274,110050.0,110040.0,0.25984]
[1756171889930,0.56000274,110050.0,110040.0,0.40984]
[1756171890131,0.21300119,110050.0,110040.0,0.59143209]
[1756171890337,0.0142206,110050.0,110040.0,0.43671209]
[1756171890455,0.0142206,110050.0,110040.0,0.6334613]
[1756171890653,0.0142206,110050.0,110040.0,0.4737813]
[1756171890853,0.19595617,110050.0,110040.0,0.49147209]
[1756171891062,0.19595617,110050.0,110040.0,0.30972]
[1756171891909,0.58451432,110050.0,110040.0,0.15]
[1756171892107,0.58451432,110050.0,110040.0,0.30964]
[1756171892376,0.60155635,110050.0,110040.0,0.30964]
[1756171893027,0.58733575,110050.0,110040.0,0.1596]
[1756171893468,0.58733575,110050.0,110030.0,0.36418377]
[1756171893664,0.18175209,110040.0,110030.0,0.36418377]
[1756171893888,0.54297424,110040.0,110030.0,0.00047674]
[1756171894087,0.56001532,110040.0,110030.0,0.00047674]
[1756171894236,0.56640602,110040.0,110030.0,0.15999674]
[1756171895043,0.83659676,110040.0,110030.0,0.00047674]
[1756171895238,0.46898391,110040.0,110030.0,0.00047674]
[1756171895544,0.83651214,110040.0,110030.0,0.00047674]
[1756171895722,0.85613338,110040.0,110030.0,0.00047674]
[1756171895924,0.85612873,110040.0,110030.0,0.00047674]
[1756171896125,0.1817686,110030.0,110020.0,0.42712856]
[1756171896344,0.1837486,110030.0,110020.0,0.42760579]
[1756171896527,0.1837486,110030.0,110020.0,0.57963579]
[1756171896812,0.1922626,110030.0,110020.0,0.42963579]
[1756171897454,0.1837486,110030.0,110020.0,0.00047723]
[1756171897688,0.19226098,110030.0,110020.0,0.15983723]
[1756171898134,0.21960298,110030.0,110020.0,0.15983723]
[1756171898570,0.21960115,110030.0,110020.0,0.16183723]
[1756171898791,0.23382463,110030.0,110020.0,0.00247723]
[1756171899019,0.23382463,110030.0,110020.0,0.16279723]
[1756171899460,0.23382463,110030.0,110020.0,0.00347723]
[1756171900128,0.23382463,110030.0,110020.0,0.00247723]
[1756171900336,0.6120649,110030.0,110020.0,0.00247723]
[1756171901209,0.6142749,110030.0,110020.0,0.00247723]
[1756171901418,4.1122449,110030.0,110020.0,0.00247723]
[1756171901625,4.11862474,110030.0,110020.0,0.00247723]
[1756171901835,4.13822307,110030.0,110020.0,0.00247723]
[1756171902037,4.29730307,110030.0,110020.0,0.00247723]
[1756171902263,4.30052861,110030.0,110020.0,0.00047723]
[1756171902918,3.78022646,110030.0,110020.0,0.00047723]
[1756171903175,4.30048861,110030.0,110020.0,0.00047723]
[1756171903390,4.30148861,110030.0,110020.0,0.00047723]
[1756171903597,4.30448861,110030.0,110020.0,0.00047723]
[1756171904501,4.14544861,110030.0,110020.0,0.00047723]
[1756171904729,4.28745579,110030.0,110020.0,0.00047723]
[1756171904942,4.30443954,110030.0,110020.0,0.00047723]
[1756171905378,4.30443957,110030.0,110020.0,0.00047723]
[1756171905595,4.30442605,110030.0,110020.0,0.00047723]
[1756171905848,4.32897347,110030.0,110020.0,0.00047723]
[1756171906057,4.39889347,110030.0,110020.0,0.00047723]
[1756171906277,4.41071121,110030.0,110020.0,0.00047723]
[1756171906719,4.25167121,110030.0,110020.0,0.00047723]
[1756171907182,4.41067121,110030.0,110020.0,0.00047723]
[1756171907638,4.41071121,110030.0,110020.0,0.00047723]
[1756171908099,4.45743992,110030.0,110020.0,0.00047723]
[1756171908375,4.4328925,110030.0,110020.0,0.00047723]
[1756171909211,4.4332125,110030.0,110020.0,0.00047723]
[1756171909446,4.4302125,110030.0,110020.0,0.00047723]
[1756171909664,4.47819743,110030.0,110020.0,0.00047723]
[1756171909854,4.48219743,110030.0,110020.0,0.00047723]
[1756171910071,4.48519743,110030.0,110020.0,0.00047723]
[1756171910281,4.48119743,110030.0,110020.0,0.00047723]
[1756171910707,4.48219743,110030.0,110020.0,0.00047723]
[1756171911132,0.18183471,109990.0,109980.0,0.07668159]
[1756171911332,0.18183471,109990.0,109980.0,0.07918929]
[1756171911333,0.3584911,109990.0,109980.0,0.07918929]
[1756171911546,0.7004711,109990.0,109980.0,0.07918929]
[1756171911760,4.25405124,109990.0,109980.0,0.07422929]
[1756171911970,4.31345245,109990.0,109980.0,0.07422929]
[1756171912455,4.15377245,109990.0,109980.0,0.07422929]
[1756171912663,3.7925503,109990.0,109980.0,0.07625929]
[1756171912876,3.7905703,109990.0,109980.0,0.07918929]
[1756171913095,3.9502103,109990.0,109980.0,0.07918929]
[1756171913313,3.77634135,109990.0,109980.0,0.08118929]
[1756171913553,3.93598135,109990.0,109980.0,0.08118929]
[1756171913774,3.93598135,109990.0,109980.0,0.62226268]
[1756171913994,0.74153138,109990.0,109980.0,0.62226268]
[1756171914216,0.74464066,109990.0,109980.0,0.62426268]
[1756171914437,0.75311745,109990.0,109980.0,0.62426268]
[1756171914654,0.75311734,109990.0,109980.0,0.26304053]
[1756171914881,0.73616376,109990.0,109980.0,0.26104053]
[1756171915114,0.04617226,109990.0,109980.0,0.85816942]
[1756171915326,0.01881726,109990.0,109980.0,0.85916942]
[1756171915961,0.01881726,109990.0,109980.0,0.49794727]
[1756171916214,0.01881726,109990.0,109980.0,0.85916942]
[1756171916839,0.03304444,109990.0,109980.0,0.85816942]
[1756171917050,0.03204444,109990.0,109980.0,0.85816942]
[1756171917287,0.03204444,109990.0,109980.0,0.85916942]
[1756171917479,0.03204444,109990.0,109980.0,0.86116942]
[1756171917824,0.03204444,109990.0,109980.0,0.85816942]
[1756171918026,0.03204444,109990.0,109980.0,0.94961471]
[1756171918234,0.03204444,109990.0,109980.0,0.95661471]
[1756171919981,0.03204444,109990.0,109980.0,1.02657471]
[1756171921217,0.03204444,109990.0,109980.0,0.86183243]
[1756171921417,0.03204444,109990.0,109980.0,0.50061028]
[1756171921619,0.03204444,109990.0,109980.0,1.02151243]
[1756171922191,0.03204444,109990.0,109980.0,1.02155243]
[1756171922591,0.03204444,109990.0,109980.0,0.66029028]
[1756171922801,0.03204444,109990.0,109980.0,1.02151243]
[1756171923330,0.04904397,109990.0,109980.0,1.02151243]
[1756171923747,0.04904397,109990.0,109980.0,1.01951243]
[1756171923977,0.04904397,109990.0,109980.0,0.78987243]
[1756171924187,0.04904397,109990.0,109980.0,0.28065028]
[1756171924188,0.23087868,109990.0,109980.0,0.28065028]
[1756171924399,3.39933087,109990.0,109980.0,0.0099623]
[1756171924598,0.38669369,109990.0,109980.0,0.0079323]
[1756171924783,0.41266189,109990.0,109980.0,0.0059323]
[1756171925224,0.41266189,109990.0,109980.0,0.0009323]
[1756171925443,4.27407404,109990.0,109980.0,0.0029323]